[Event "XVII Profigaia Open 2017"]
[Site "Gaia"]
[Date "2017.06.17"]
[Round "6"]
[White "Pipiras, Filipa Fortuna"]
[Black "Marrios, Ruben"]
[Result "0-1"]
[ECO "D10"]
[WhiteElo "1641"]
[BlackElo "1315"]
[Annotator "NA RC"]
[PlyCount "142"]
[EventDate "2017.??.??"]
[EventType "swiss"]
[EventCountry "POR"]
[SourceTitle "playchess.com"]
[Source "ChessBase"]
[SourceQuality "1"]
[TimeControl "5400+30"]

1. d4 {[%emt 0:00:00]} d5 {[%emt 0:00:09]} 2. c4 {[%emt 0:00:00]} c6 {[%emt 0:00:07]} 3. e3 {[%emt 0:00:13]} Bf5 {[%emt 0:00:17]} 4. Nc3 {[%emt 0:00:22]} Nf6 {[%emt 0:00:18]} 5. Nf3 {[%emt 0:00:31]} Nbd7 {[%emt 0:00:40]} 6. cxd5 {[%emt 0:01:16]} cxd5 {[%emt 0:00:21]} 7. Qb3 {[%emt 0:01:02]} Nb6 {[%emt 0:03:07]} 8. Bb5+ {[%emt 0:00:50]} Bd7 {[%emt 0:00:40]} 9. Bxd7+ {[%emt 0:01:02]} Qxd7 {[%emt 0:00:15]} 10. Ne5 {[%emt 0:00:20]} Qc7 {[%emt 0:03:55]} 11. Qb5+ {[%emt 0:00:56]} Nbd7 {[%emt 0:02:33]} 12. Nxd5 {[%emt 0:02:34]} Nxd5 {[%emt 0:04:40]} 13. Qxd5 {[%emt 0:00:20]} Nxe5 14. Qxe5 {[%emt 0:00:28]} Qxe5 {[%emt 0:00:44]} 15. dxe5 {[%emt 0:00:02]} g6 {[%emt 0:00:12]} 16. Bd2 {[%emt 0:00:16]} Bg7 {[%emt 0:00:16]} 17. Bc3 {[%emt 0:00:11]} O-O {[%emt 0:00:11]} 18. Ke2 {[%emt 0:01:00]} e6 {[%emt 0:00:20]} 19. Rhd1 {[%emt 0:00:42]} Rfd8 {[%emt 0:00:15]} 20. Rd4 {[%emt 0:02:03]} Rxd4 {[%emt 0:01:22]} 21. exd4 {[%emt 0:01:58]} Rc8 {[%emt 0:01:10]} 22. Kd3 {[%emt 0:01:22]} Bh6 {[%emt 0:00:45]} 23. a4 {[%emt 0:01:30]} Kf8 {[%emt 0:00:20]} 24. Bb4+ {[%emt 0:01:09]} Ke8 {[%emt 0:00:24]} 25. Bc5 {[%emt 0:01:33]} b6 {[%emt 0:00:26]} 26. Bb4 {[%emt 0:00:21]} Kd7 {[%emt 0:02:40]} 27. Bc3 {[%emt 0:00:18]} Kc6 {[%emt 0:00:28]} 28. a5 {[%emt 0:00:33]} b5 {[%emt 0:05:30]} 29. a6 {[%emt 0:00:48]} Bf8 {[%emt 0:00:23]} 30. f4 {[%emt 0:04:51]} b4 {[%emt 0:02:14]} 31. Bd2 {[%emt 0:01:18]} Kb5 {[%emt 0:01:00]} 32. Be3 {[%emt 0:00:43]} Rc6 {[%emt 0:02:30]} 33. d5 {[%emt 0:00:49]} exd5 {[%emt 0:03:06]} 34. Bxa7 {[%emt 0:00:27]} Rxa6 {[%emt 0:00:13]} 35. Rxa6 {[%emt 0:00:16]} Kxa6 {[%emt 0:00:11]} 36. Be3 {[%emt 0:00:21]} Kb5 {[%emt 0:01:38]} 37. b3 {[%emt 0:00:12]} Be7 {[%emt 0:00:24]} 38. g4 {[%emt 0:02:15]} f6 {[%emt 0:11:07]} 39. Bd4 {[%emt 0:00:48]} f5 {[%emt 0:03:12]} 40. g5 {[%emt 0:01:12]} Kc6 {[%emt 0:01:50]} 41. Ba7 {[%emt 0:03:14]} Bf8 {[%emt 0:02:03]} 42. Kd4 {[%emt 0:01:28]} Be7 {[%emt 0:08:06]} 43. h3 {[%emt 0:04:28]} Bf8 {[%emt 0:01:21]} 44. Bb8 {[%emt 0:01:45]} Bc5+ {[%emt 0:01:13]} 45. Kd3 {[%emt 0:01:16]} Kd7 {[%emt 0:01:39]} 46. e6+ {[%emt 0:04:48]} Kxe6 {[%emt 0:00:46]} 47. Bc7 {[%emt 0:00:25]} Bd6 {[%emt 0:03:57]} 48. Ba5 {[%emt 0:02:42]} Bxf4 {[%emt 0:04:18]} 49. Bxb4 {[%emt 0:00:13]} Bxg5 {[%emt 0:00:10]} 50. Bc3 {[%emt 0:00:53]} Kd6 {[%emt 0:00:25]} 51. Bd4 {[%emt 0:00:12]} Kc6 {[%emt 0:00:27]} 52. Be5 {[%emt 0:01:03]} Be7 {[%emt 0:00:40]} 53. Bc3 {[%emt 0:01:48]} h5 {[%emt 0:00:51]} 54. Ke3 {[%emt 0:00:18]} g5 {[%emt 0:00:26]} 55. Kf2 {[%emt 0:00:36]} Kc5 {[%emt 0:00:14]} 56. Ke3 {[%emt 0:00:17]} f4+ {[%emt 0:00:41]} 57. Kf3 {[%emt 0:00:24]} d4 {[%emt 0:00:43]} 58. Bb2 {[%emt 0:00:13]} Kd5 {[%emt 0:01:54]} 59. h4 {[%emt 0:00:34]} Ke5 {[%emt 0:00:49]} 60. Bc1 {[%emt 0:00:32]} g4+ {[%emt 0:00:30]} 61. Kg2 {[%emt 0:00:41]} Ke4 {[%emt 0:00:14]} 62. Bd2 {[%emt 0:01:40]} Bxh4 {[%emt 0:01:04]} 63. b4 {[%emt 0:00:17]} f3+ {[%emt 0:00:27]} 64. Kf1 {[%emt 0:00:17]} g3 {[%emt 0:00:22]} 65. b5 {[%emt 0:00:08]} g2+ {[%emt 0:00:12]} 66. Kg1 {[%emt 0:00:17]} Bd8 {[%emt 0:00:31]} 67. b6 {[%emt 0:00:33]} Bxb6 {[%emt 0:00:18]} 68. Kh2 {[%emt 0:00:53]} d3 {[%emt 0:00:17]} 69. Kh3 {[%emt 0:01:39]} g1=Q {[%emt 0:00:15]} 70. Bb4 {[%emt 0:02:17]} Qg4+ {[%emt 0:00:15]} 71. Kh2 {[%emt 0:00:09]} Qg2# {[%emt 0:00:09]} 0-1

[Event "XVII Profigaia Open 2017"]
[Site "Gaia"]
[Date "2017.06.17"]
[Round "6"]
[White "Brandao, Alvaro Sousa"]
[Black "Filipe, Guilherme Castro"]
[Result "1-0"]
[ECO "A06"]
[WhiteElo "1605"]
[BlackElo "1145"]
[Annotator "NA RC"]
[PlyCount "45"]
[EventDate "2017.??.??"]
[EventType "swiss"]
[EventCountry "POR"]
[SourceTitle "playchess.com"]
[Source "ChessBase"]
[SourceQuality "1"]
[TimeControl "5400+30"]

1. Nf3 {[%emt 0:02:02]} d5 {[%emt 0:07:37]} 2. b3 {[%emt 0:00:28]} Nc6 {[%emt 0:00:10]} 3. Bb2 {[%emt 0:00:08]} Bf5 {[%emt 0:01:17]} 4. e3 {[%emt 0:00:53]} Nf6 {[%emt 0:00:24]} 5. Bb5 {[%emt 0:00:51]} Qd7 {[%emt 0:01:29]} 6. Ne5 {[%emt 0:05:35]} Qe6 {[%emt 0:00:37]} 7. d3 {[%emt 0:04:31]} a6 {[%emt 0:00:14]} 8. Bxc6+ {[%emt 0:00:36]} bxc6 {[%emt 0:01:07]} 9. Nd2 {[%emt 0:02:19]} Nd7 {[%emt 0:01:01]} 10. Ndf3 {[%emt 0:05:32]} f6 {[%emt 0:01:32]} 11. Nxd7 {[%emt 0:00:57]} Qxd7 {[%emt 0:00:12]} 12. Ba3 {[%emt 0:05:51]} e5 {[%emt 0:03:51]} 13. Bxf8 {[%emt 0:00:12]} Kxf8 14. Qd2 {[%emt 0:04:36]} Kf7 {[%emt 0:03:52]} 15. h3 {[%emt 0:02:42]} Rhe8 {[%emt 0:01:05]} 16. g4 {[%emt 0:03:22]} Bg6 {[%emt 0:00:15]} 17. O-O-O {[%emt 0:03:15]} Rad8 {[%emt 0:00:44]} 18. Qe2 {[%emt 0:03:13]} d4 {[%emt 0:01:47]} 19. h4 {[%emt 0:01:26]} h6 {[%emt 0:00:56]} 20. h5 {[%emt 0:01:16]} Bh7 {[%emt 0:00:03]} 21. e4 {[%emt 0:00:30]} Qxg4 {[%emt 0:00:48]} 22. Nxe5+ {[%emt 0:00:09]} fxe5 {[%emt 0:00:35]} 23. Qxg4 {[%emt 0:00:07]} 1-0

[Event "XVII Profigaia Open 2017"]
[Site "Gaia"]
[Date "2017.06.17"]
[Round "6"]
[White "Sismeiro, Miguel"]
[Black "Silva, Mariana Sofia T"]
[Result "1/2-1/2"]
[ECO "B38"]
[WhiteElo "1528"]
[BlackElo "1922"]
[Annotator "NA RC"]
[PlyCount "92"]
[EventDate "2017.??.??"]
[EventType "swiss"]
[EventCountry "POR"]
[SourceTitle "playchess.com"]
[Source "ChessBase"]
[SourceQuality "1"]
[TimeControl "5400+30"]

{[%evp 24,79,52,48,60,56,58,32767,55,33,32767,9,22,15,37,26,41,61,44,42,79,80,134,130,139,133,32767,143,191,157,294,268,291,60,50,43,44,35,47,32767,32767,32767,91,94,97,107,97,95,105,104,95,52,103,78,92,70,77,65]} 1. e4 {[%emt 0:00:00]} c5 {[%emt 0:00:11]} 2. Nf3 {[%emt 0:00:15]} Nc6 {[%emt 0:00:12]} 3. d4 {[%emt 0:00:29]} cxd4 {[%emt 0:00:07]} 4. Nxd4 {[%emt 0:00:16]} g6 {[%emt 0:00:08]} 5. c4 {[%emt 0:00:28]} Bg7 {[%emt 0:00:07]} 6. Be3 {[%emt 0:00:10]} Nf6 {[%emt 0:00:08]} 7. Nc3 {[%emt 0:00:19]} O-O {[%emt 0:00:07]} 8. Be2 {[%emt 0:00:32]} d6 {[%emt 0:00:09]} 9. O-O {[%emt 0:00:27]} Bd7 {[%emt 0:00:07]} 10. Qd2 {[%emt 0:00:19]} Nxd4 {[%emt 0:00:11]} 11. Bxd4 {[%emt 0:00:16]} Bc6 {[%emt 0:00:08]} 12. f3 {[%emt 0:00:22]} a5 {[%emt 0:00:19]} 13. b3 {[%emt 0:00:26]} Nd7 {[%emt 0:00:06]} 14. Be3 {[%emt 0:00:24]} Nc5 {[%emt 0:00:08] LiveBook: 911 Games} 15. Rab1 {[%emt 0:01:34]} Be5 {[%emt 0:05:42] B38: Sicilian: Maroczy Bind with 5...Bg7 and 7...0-0} (15... Qb6 16. Rfc1 Rfc8 17. Rc2 Qb4 18. Qc1 Qb6 19. Kh1 h5 20. a3 Qd8 21. Qd2 Kh7 22. Bf1 Qf8 23. b4 axb4 24. axb4 Na4 25. Ne2 {1-0 (55) Navara,D (2734)-Mamedov,R (2650) Huaian 2016}) 16. Rfc1 {[%emt 0:18:50]} e6 {[%emt 0:00:41]} 17. Bg5 {[%emt 0:10:04]} f6 {[%emt 0:09:31]} 18. Be3 {[%emt 0:01:10]} f5 {[%emt 0:00:32]} 19. exf5 {[%emt 0:02:16]} Rxf5 $146 {[%emt 0:06:28]} ({Predecessor:} 19... gxf5 20. Nb5 Qh4 21. g3 Bxg3 22. hxg3 Qxg3+ 23. Kf1 {½-½ (42) Lehner,O (2400)-Calzetta Ruiz,M (2191) Aschach 2016}) 20. f4 {[%emt 0:06:21]} Bg7 {[%emt 0:05:39]} 21. Bg4 {[%emt 0:04:17]} Rf6 {[%emt 0:06:14]} 22. Rd1 {[%emt 0:01:17]} Ne4 {[%emt 0:02:32] [#]} (22... Rf8 $142) 23. Nxe4 $1 {[%emt 0:01:02]} Bxe4 {[%emt 0:00:06]} 24. Rbc1 {[%emt 0:00:20]} h5 {[%emt 0:08:35] [#]} 25. Bh3 $1 {[%emt 0:04:29]} d5 {[%emt 0:04:42]} 26. Bd4 {[%emt 0:01:53]} Bh6 {[%emt 0:04:11]} (26... a4 $142 27. b4 Kh8) 27. Bxf6 {[%emt 0:03:45]} Qxf6 {[%emt 0:00:05]} 28. Qd4 $2 {[%emt 0:00:23]} ({Resist} 28. cxd5 $6 Bxf4 29. Qc3 (29. Bxe6+ Kh7 $16) 29... Qg5 $16) (28. g3 $18) 28... Qxd4+ {[%emt 0:07:23]} 29. Rxd4 {[%emt 0:00:33]} e5 $1 {[%emt 0:00:23]} 30. Rxd5 {[%emt 0:03:09]} Bxf4 {[%emt 0:05:23]} 31. Be6+ {[%emt 0:02:17]} Kh8 {[%emt 0:00:30]} 32. Re1 {[%emt 0:00:26]} Bxd5 {[%emt 0:02:14]} 33. Bxd5 {[%emt 0:00:10]} Rb8 {[%emt 0:03:15]} 34. g3 {[%emt 0:04:47]} Bd2 {[%emt 0:00:24]} 35. Rxe5 {[%emt 0:01:04]} Bb4 {[%emt 0:00:13]} 36. Kg2 {[%emt 0:00:34]} Kg7 {[%emt 0:00:43]} 37. h3 {[%emt 0:01:34]} b6 {[%emt 0:01:03]} ({Better is} 37... b5 $14) 38. Re6 {[%emt 0:00:54]} g5 {[%emt 0:03:09]} 39. g4 {[%emt 0:00:10]} h4 {[%emt 0:00:41]} 40. Be4 $14 {[%emt 0:02:19]} Bd2 {[%emt 0:01:13]} 41. Kf3 {[%emt 0:00:11]} Bf4 {[%emt 0:02:33]} 42. Bd5 {[%emt 0:00:50]} Bd2 {[%emt 0:01:50]} 43. Be4 {[%emt 0:00:11]} Bf4 {[%emt 0:00:46]} 44. Bd5 {[%emt 0:00:11]} Bc1 {[%emt 0:00:06]} 45. Be4 {[%emt 0:00:41]} Bf4 46. Bd5 Bc1 1/2-1/2

[Event "XVII Profigaia Open 2017"]
[Site "Gaia"]
[Date "2017.06.17"]
[Round "6"]
[White "Silva, Joao Miguel Carvalh"]
[Black "Triunfante, Armando"]
[Result "0-1"]
[ECO "C50"]
[WhiteElo "1502"]
[BlackElo "1231"]
[Annotator "NA RC"]
[PlyCount "90"]
[EventDate "2017.??.??"]
[EventType "swiss"]
[EventCountry "POR"]
[SourceTitle "playchess.com"]
[Source "ChessBase"]
[SourceQuality "1"]
[TimeControl "5400+30"]

1. e4 {[%emt 0:06:01]} e5 {[%emt 0:00:00]} 2. Nf3 {[%emt 0:00:08]} Nc6 {[%emt 0:00:00]} 3. Bc4 {[%emt 0:00:38]} h6 {[%emt 0:00:09]} 4. d3 {[%emt 0:01:17]} Bc5 {[%emt 0:00:37]} 5. Nc3 {[%emt 0:00:57]} d6 {[%emt 0:01:37]} 6. h3 {[%emt 0:06:48]} Nf6 {[%emt 0:02:22]} 7. Ne2 {[%emt 0:02:10]} Qe7 {[%emt 0:02:15]} 8. Ng3 {[%emt 0:00:57]} Bd7 {[%emt 0:00:46]} 9. c3 {[%emt 0:00:38]} O-O-O {[%emt 0:02:30]} 10. b4 {[%emt 0:05:43]} Bb6 {[%emt 0:01:02]} 11. a4 {[%emt 0:02:09]} a5 {[%emt 0:01:04]} 12. b5 {[%emt 0:01:33]} Nb8 {[%emt 0:01:38]} 13. Qb3 {[%emt 0:12:37]} Be6 {[%emt 0:00:47]} 14. Bxe6+ {[%emt 0:02:03]} Qxe6 {[%emt 0:01:25]} 15. Qxe6+ {[%emt 0:12:14]} fxe6 {[%emt 0:00:07]} 16. O-O {[%emt 0:01:19]} Nbd7 {[%emt 0:03:11]} 17. Ba3 {[%emt 0:01:18]} g5 {[%emt 0:00:52]} 18. d4 {[%emt 0:01:23]} exd4 {[%emt 0:05:32]} 19. cxd4 {[%emt 0:00:30]} g4 {[%emt 0:00:38]} 20. hxg4 {[%emt 0:02:00]} Nxg4 {[%emt 0:00:56]} 21. Rac1 {[%emt 0:01:18]} Kb8 {[%emt 0:05:44]} 22. Bb2 e5 23. dxe5 {[%emt 0:01:43]} Ndxe5 {[%emt 0:00:51]} 24. Bd4 {[%emt 0:02:48]} Nxf3+ {[%emt 0:01:38]} 25. gxf3 {[%emt 0:02:18]} Bxd4 {[%emt 0:08:43]} 26. fxg4 {[%emt 0:00:28]} Rhg8 {[%emt 0:01:00]} 27. Rc4 {[%emt 0:02:19]} Be5 {[%emt 0:07:54]} 28. Rfc1 {[%emt 0:01:11]} Rd7 {[%emt 0:04:23]} 29. Kg2 {[%emt 0:05:05]} Rxg4 {[%emt 0:01:06]} 30. Rh1 {[%emt 0:01:33]} Bxg3 {[%emt 0:12:42]} 31. fxg3 {[%emt 0:00:27]} d5 {[%emt 0:03:24]} 32. Rd4 {[%emt 0:01:21]} Rxe4 {[%emt 0:00:21]} 33. Rxe4 {[%emt 0:00:15]} dxe4 {[%emt 0:00:10]} 34. Rxh6 {[%emt 0:00:04]} Rd4 {[%emt 0:01:19]} 35. Rh4 {[%emt 0:00:36]} Rxa4 {[%emt 0:00:29]} 36. Kf2 {[%emt 0:00:08]} Ka7 {[%emt 0:02:19]} 37. Ke3 {[%emt 0:01:30]} Ra3+ {[%emt 0:00:39]} 38. Kxe4 {[%emt 0:00:16]} Rxg3 {[%emt 0:00:21]} 39. Rh6 {[%emt 0:00:22]} Rb3 {[%emt 0:00:37]} 40. Rh5 {[%emt 0:01:07]} Kb6 {[%emt 0:00:24]} 41. Kd4 {[%emt 0:00:20]} Rxb5 {[%emt 0:00:09]} 42. Rxb5+ {[%emt 0:01:44]} Kxb5 {[%emt 0:00:02]} 43. Kc3 {[%emt 0:00:09]} c5 {[%emt 0:00:58]} 44. Kb3 {[%emt 0:00:15]} b6 {[%emt 0:00:59]} 45. Kc3 {[%emt 0:00:15]} Kc6 {[%emt 0:00:14] Kd4} 0-1

[Event "XVII Profigaia Open 2017"]
[Site "Gaia"]
[Date "2017.06.17"]
[Round "6"]
[White "Moreira, Rafael Mota"]
[Black "Duarte, Francisco"]
[Result "1-0"]
[ECO "C50"]
[WhiteElo "1478"]
[BlackElo "1154"]
[Annotator "NA RC"]
[PlyCount "95"]
[EventDate "2017.??.??"]
[EventType "swiss"]
[EventCountry "POR"]
[SourceTitle "playchess.com"]
[Source "ChessBase"]
[SourceQuality "1"]
[TimeControl "5400+30"]

1. e4 {[%emt 0:00:00]} e5 {[%emt 0:05:38]} 2. Nf3 {[%emt 0:00:00]} Nc6 {[%emt 0:00:16]} 3. Bc4 {[%emt 0:00:00]} h6 {[%emt 0:00:29]} 4. Nc3 {[%emt 0:00:19]} Nf6 {[%emt 0:00:18]} 5. d3 {[%emt 0:00:20]} Bb4 {[%emt 0:00:29]} 6. Bd2 {[%emt 0:01:27]} d6 {[%emt 0:00:16]} 7. Nd5 {[%emt 0:02:08]} Bxd2+ {[%emt 0:00:13]} 8. Qxd2 {[%emt 0:00:19]} Bg4 {[%emt 0:00:14]} 9. Qe3 {[%emt 0:05:52]} Bxf3 {[%emt 0:00:45]} 10. Qxf3 {[%emt 0:00:30]} Nd4 {[%emt 0:00:09]} 11. Qd1 {[%emt 0:01:03]} c6 {[%emt 0:00:22]} 12. Ne3 {[%emt 0:04:20]} b5 {[%emt 0:00:40]} 13. Bb3 {[%emt 0:00:57]} O-O {[%emt 0:00:34]} 14. c3 {[%emt 0:01:05]} Ne6 {[%emt 0:00:29]} 15. Nf5 {[%emt 0:02:16]} d5 {[%emt 0:00:23]} 16. exd5 {[%emt 0:01:42]} cxd5 17. Qf3 {[%emt 0:02:24]} Nc5 {[%emt 0:01:17]} 18. Qg3 {[%emt 0:01:58]} Nh5 {[%emt 0:01:16]} 19. Qg4 {[%emt 0:03:47]} Qg5 {[%emt 0:02:25]} 20. Qxg5 {[%emt 0:01:11]} hxg5 {[%emt 0:00:05]} 21. Ne7+ {[%emt 0:02:41]} Kh7 {[%emt 0:01:18]} 22. Bxd5 {[%emt 0:01:55]} Nxd3+ {[%emt 0:00:07]} 23. Kd2 {[%emt 0:01:49]} Rae8 {[%emt 0:00:27]} 24. Be4+ {[%emt 0:04:10]} Kh8 {[%emt 0:00:00]} 25. Bxd3 {[%emt 0:00:00]} Rxe7 {[%emt 0:00:03]} 26. Bxb5 {[%emt 0:00:08]} Rd8+ {[%emt 0:00:14]} 27. Kc2 {[%emt 0:00:48]} Re6 {[%emt 0:01:19]} 28. Rad1 {[%emt 0:01:10]} Red6 {[%emt 0:00:30]} 29. Rxd6 {[%emt 0:02:44]} Rxd6 {[%emt 0:00:03]} 30. Rd1 {[%emt 0:00:18]} Rf6 {[%emt 0:00:33]} 31. f3 {[%emt 0:01:34]} Nf4 {[%emt 0:00:23]} 32. g3 {[%emt 0:02:37]} Ng2 {[%emt 0:00:30]} 33. Rd7 {[%emt 0:01:45]} Rxf3 {[%emt 0:00:24]} 34. Bd3 {[%emt 0:01:28]} g6 {[%emt 0:00:17]} 35. c4 {[%emt 0:03:24]} Ne1+ {[%emt 0:00:55]} 36. Kd2 {[%emt 0:00:43]} Nxd3 {[%emt 0:00:22]} 37. Rxd3 {[%emt 0:00:22]} Rf2+ {[%emt 0:00:02]} 38. Kc3 {[%emt 0:00:26]} Rxh2 {[%emt 0:00:13]} 39. c5 {[%emt 0:00:19]} e4 {[%emt 0:00:15]} 40. Rd2 {[%emt 0:01:17]} Rh1 {[%emt 0:00:31]} 41. c6 {[%emt 0:00:58]} Rc1+ {[%emt 0:00:08]} 42. Rc2 {[%emt 0:00:06]} Rd1 {[%emt 0:00:09]} 43. c7 {[%emt 0:00:19]} Rd3+ {[%emt 0:00:14]} 44. Kb4 {[%emt 0:00:25]} Rd4+ {[%emt 0:00:01]} 45. Rc4 {[%emt 0:00:40]} a5+ {[%emt 0:00:02]} 46. Kb5 {[%emt 0:01:12]} Rd5+ {[%emt 0:00:11]} 47. Rc5 {[%emt 0:00:45]} Rxc5+ {[%emt 0:00:17]} 48. Kxc5 {[%emt 0:00:14]} 1-0

[Event "XVII Profigaia Open 2017"]
[Site "Gaia"]
[Date "2017.06.17"]
[Round "6"]
[White "Ribeiro, Andre Amorim"]
[Black "Andrade Sandoval, Jim Carlos"]
[Result "0-1"]
[ECO "B40"]
[WhiteElo "1463"]
[BlackElo "1971"]
[Annotator "NA"]
[PlyCount "80"]
[EventDate "2017.??.??"]
[EventType "swiss"]
[EventCountry "POR"]
[SourceTitle "playchess.com"]
[Source "ChessBase"]
[SourceQuality "1"]
[TimeControl "5400+30"]

{[%evp 8,80,14,27,24,32767,32767,32767,-6,32767,-10,-21,32767,-18,-24,-121,-7,-99,-72,-123,32767,32767,-156,32767,-157,-154,-152,32767,-149,-173,-154,-148,-162,-153,-161,-391,32767,32767,-395,-590,-424,-514,-489,-649,-735,-1157,-598,32767,32767,-731,-779,-766,-1030,-2029,-655,-710,-603,-636,-677,-699,-266,-508,-409,-633,-528,-518,-589,32767,32767,32767,32767,-2643,-5447,-29967,-29973]} 1. e4 {[%emt 0:02:50]} c5 {[%emt 0:00:05]} 2. Nf3 {[%emt 0:00:07]} e6 {[%emt 0:00:04]} 3. c3 {[%emt 0:00:46]} d5 {[%emt 0:00:04]} 4. exd5 {[%emt 0:01:20]} Qxd5 {[%emt 0:00:09] LiveBook: 1236 Games} 5. d4 {[%emt 0:00:18]} Nf6 {[%emt 0:00:07]} 6. Be3 {[%emt 0:02:20]} cxd4 {[%emt 0:00:09]} 7. Bxd4 {[%emt 0:00:25] B22: Sicilian: 2 c3} (7. cxd4 Bb4+ 8. Nc3 O-O 9. Be2 Nbd7 10. O-O Bxc3 11. bxc3 b6 12. Nd2 Qd6 13. Bf3 Rb8 14. c4 Bb7 15. Bxb7 Rxb7 {1-0 (36) Finkel,A (2511)-Navara,D (2725) Tallinn 2016}) 7... Nc6 {[%emt 0:05:16]} 8. Nbd2 {[%emt 0:01:55]} Nxd4 {[%emt 0:04:46]} 9. Nxd4 {[%emt 0:02:25]} Bd7 {[%emt 0:10:18]} 10. Qb3 $146 {[%emt 0:12:55]} ({Predecessor:} 10. Qf3 Qxf3 11. N2xf3 Bd6 12. Bb5 Rd8 13. O-O Bxb5 14. Nxb5 Bb8 {1-0 (91) Koutsogiannis,E (1960)-Pandelidis,I (2114) Nikaia 2015}) 10... Bc5 {[%emt 0:08:00]} 11. N2f3 {[%emt 0:02:46]} (11. Qxd5 $11 Nxd5 12. N2b3) 11... O-O {[%emt 0:05:54]} ({Black should play} 11... Qe4+ $17 12. Be2 O-O) 12. Be2 {[%emt 0:06:02]} (12. Qxd5 $11 {keeps the balance.} Nxd5 13. Bc4) 12... Bxd4 {[%emt 0:05:28]} 13. Qxd5 {[%emt 0:00:54]} Bxc3+ {[%emt 0:00:53]} 14. bxc3 {[%emt 0:00:19]} Nxd5 {[%emt 0:00:09]} 15. Ne5 {[%emt 0:00:51]} Ba4 {[%emt 0:05:06]} 16. c4 {[%emt 0:01:25]} Nf4 {[%emt 0:11:04]} 17. g3 {[%emt 0:05:18]} Nxe2 {[%emt 0:00:43]} 18. Kxe2 {[%emt 0:00:09]} Rac8 {[%emt 0:04:38]} 19. Rhc1 {[%emt 0:05:43]} Rfd8 {[%emt 0:02:00]} 20. Rab1 {[%emt 0:03:47]} f6 {[%emt 0:11:37]} 21. Rxb7 $2 {[%emt 0:07:19]} (21. Nd3 $17) 21... fxe5 {[%emt 0:02:51]} 22. Rxa7 {[%emt 0:00:32] [#]} Rxc4 $1 {[%emt 0:02:32]} 23. Rb1 {[%emt 0:03:36]} (23. Rxc4 $142 Bb5 24. Ke3 Bxc4 25. a4) 23... Rd7 {[%emt 0:02:59]} 24. Ra5 {[%emt 0:04:42]} e4 {[%emt 0:03:41]} 25. Ke3 {[%emt 0:03:06]} Kf7 {[%emt 0:00:08]} 26. Rb2 {[%emt 0:02:46]} Kf6 {[%emt 0:01:51]} 27. h4 {[%emt 0:05:32]} Bd1 {[%emt 0:02:02]} 28. Ra3 {[%emt 0:01:54]} Rc2 {[%emt 0:03:31]} 29. Rxc2 {[%emt 0:02:15]} Bxc2 {[%emt 0:00:05]} 30. Ke2 {[%emt 0:00:33]} Bd1+ {[%emt 0:00:47]} 31. Ke3 {[%emt 0:00:37]} Ke5 {[%emt 0:00:24]} 32. Ra5+ {[%emt 0:01:17]} Rd5 {[%emt 0:00:09]} 33. Ra3 {[%emt 0:00:07]} Rd3+ {[%emt 0:01:48]} (33... g6 $142 34. Rc3 Kf5) 34. Rxd3 {[%emt 0:00:15]} exd3 {[%emt 0:00:16]} 35. Kxd3 {[%emt 0:00:02]} Kf5 {[%emt 0:00:03]} 36. Kd2 {[%emt 0:01:34]} Ba4 {[%emt 0:00:09]} 37. f3 {[%emt 0:00:33]} h5 {[%emt 0:00:09]} 38. Ke3 {[%emt 0:02:55]} e5 {[%emt 0:00:10]} 39. a3 {[%emt 0:02:41]} Bb5 {[%emt 0:00:05]} 40. Kf2 {[%emt 0:01:36]} e4 {[%emt 0:00:35]} 0-1

[Event "XVII Profigaia Open 2017"]
[Site "Gaia"]
[Date "2017.06.17"]
[Round "6"]
[White "Coimbra, Joao Marcial Ferrei"]
[Black "Oliveira, Maria Elisa Ramos M"]
[Result "1-0"]
[ECO "A00"]
[WhiteElo "1402"]
[BlackElo "1137"]
[Annotator "NA RC"]
[PlyCount "85"]
[EventDate "2017.??.??"]
[EventType "swiss"]
[EventCountry "POR"]
[SourceTitle "playchess.com"]
[Source "ChessBase"]
[SourceQuality "1"]
[TimeControl "5400+30"]

1. c3 {[%emt 0:00:00]} Nf6 {[%emt 0:00:05]} 2. d3 {[%emt 0:00:09]} e6 {[%emt 0:00:06]} 3. Bg5 b6 4. e4 {[%emt 0:01:26]} Be7 {[%emt 0:00:49]} 5. h3 {[%emt 0:00:35]} h6 {[%emt 0:00:12]} 6. Bh4 {[%emt 0:00:10]} d6 {[%emt 0:00:21]} 7. Be2 {[%emt 0:00:28]} Bb7 {[%emt 0:00:22]} 8. Bf3 {[%emt 0:00:10]} c5 {[%emt 0:00:26]} 9. Nd2 {[%emt 0:00:59]} d5 {[%emt 0:00:26]} 10. e5 {[%emt 0:00:57]} Nfd7 {[%emt 0:00:10]} 11. Bg3 {[%emt 0:00:25]} f6 {[%emt 0:00:15]} 12. exf6 {[%emt 0:01:06]} Nxf6 {[%emt 0:00:14]} 13. Bh5+ {[%emt 0:00:42]} Kf8 {[%emt 0:00:15]} 14. Bg4 {[%emt 0:01:24]} Kf7 {[%emt 0:00:27]} 15. Ngf3 {[%emt 0:00:37]} Bc8 {[%emt 0:01:18]} 16. Ne5+ {[%emt 0:00:23]} Ke8 {[%emt 0:01:04]} 17. Bh5+ {[%emt 0:00:19]} g6 {[%emt 0:00:45]} 18. Bxg6+ {[%emt 0:00:22]} Kf8 {[%emt 0:00:17]} 19. Nf7 {[%emt 0:00:44]} Qd7 {[%emt 0:00:16]} 20. Nf3 {[%emt 0:02:56]} Kg7 {[%emt 0:00:47]} 21. Nxh8 {[%emt 0:01:19]} Kxh8 {[%emt 0:00:09]} 22. Be5 Kg7 23. Bh5 {[%emt 0:02:36]} Kf8 {[%emt 0:01:34]} 24. Bg4 {[%emt 0:00:41]} h5 {[%emt 0:00:45]} 25. Nh4 {[%emt 0:00:36]} hxg4 {[%emt 0:00:16]} 26. hxg4 {[%emt 0:00:22]} Qd8 {[%emt 0:02:30]} 27. g5 {[%emt 0:01:07]} Ng8 {[%emt 0:00:42]} 28. Qf3+ {[%emt 0:01:14]} Ke8 {[%emt 0:00:14]} 29. Qh5+ {[%emt 0:01:42]} Kd7 {[%emt 0:00:10]} 30. f4 {[%emt 0:00:35]} Nc6 {[%emt 0:00:45]} 31. Nf3 {[%emt 0:01:00]} Qe8 {[%emt 0:00:42]} 32. g4 {[%emt 0:01:19]} Bd6 {[%emt 0:00:31]} 33. Qxe8+ {[%emt 0:00:45]} Kxe8 {[%emt 0:00:11]} 34. Bxd6 {[%emt 0:00:07]} Kf7 {[%emt 0:00:10]} 35. Ne5+ {[%emt 0:01:11]} Nxe5 {[%emt 0:00:15]} 36. fxe5 {[%emt 0:00:16]} Kg6 {[%emt 0:00:06]} 37. Rh5 {[%emt 0:01:22]} Bd7 {[%emt 0:00:46]} 38. Kd2 {[%emt 0:00:34]} Be8 {[%emt 0:00:23]} 39. Rah1 Kf7 40. Rh8 {[%emt 0:03:43]} Ne7 {[%emt 0:00:43]} 41. R1h7+ {[%emt 0:00:28]} Kg6 {[%emt 0:00:12]} 42. Rxe7 {[%emt 0:00:38]} Kxg5 {[%emt 0:00:54]} 43. Rexe8 {[%emt 0:00:45]} 1-0